Workbook

Sheet Front Sheet
B2: Calculate your estimated charges for mains requisition work Estimation based on Severn Trent new connection charges 2025/26 Last updated: February 2025
B8: Before you get started there are a few things you'll need to understand…
B10: l | C10: The estimated charges are calculated using Severn Trent's 2025/26 new connections charges.
B11: l | C11: The estimated charges relate to mains requisitions work completed by Severn Trent.
B12: l | C12: This estimator can be used to estimate the cost of the onsite mains scheme that needs to be paid based on the site information you provide.
B13: l | C13: The estimated charges should not be taken as a final quote, agreed terms or an offer to carry out works at an agreed price.
B14: l | C14: The estimated charges can be calculated for PE (polyethylene) sites and protective pipe sites.
B15: l | C15: PE sites refer to standard pipework used when the ground is not contaminated and our estimation is based on a bespoke build up of a schedule of rates.
B16: l | C16: The estimated costs for onsite ground is unmade.
B17: l | C17: Protective pipework refers to sites where protective pipework is required because the ground is contaminated and our estimation is based on a bespoke build up of a schedule of rates.
B18: l | C18: Figures for total cost are Gross estimated values, this figure represents the total onsite cost of construction required for this site. Any work that Severn Trent will be required to carry out, (whether contestable or non-contestable) has not been deducted, deferred or 'netted' off this figure.
B19: l | C19: To provide a simple estimate of likely charges we have had to make a number of assumptions about your site. A formal quote, based on full information provided by you about your site, may therefore differ.
B20: l | C20: The protective pipe & PE pipe estimated charges allows you to select onsite pipework with three lengths of different pipe diameters. Offsite pipework can only be selected as a single length of one diameter.
B21: l | C21: The estimated charges assume temporary two way traffic lights within each scheme, however, in reality some schemes will require more expensive traffic management (eg road closures).
B22: l | C22: The estimated charges assume the diameters of the valves, hydrants and wash outs based on the information you provide under question 1 of your protective pipe charges.
B23: l | C23: The estimated charges assume there are no PRV requirements - quotes including PRVs are likely to be higher than the estimates shown in this tool
B24: l | C24: The estimated charges assume that one pressure test per 100m of onsite mains is required.
T38: © Severn Trent Water 2022

Sheet PE EST
B2: Calculate your estimated PE charges This estimation should only be used for standard PE schemes where sites have between 5 and 250 plots.
B5: HOME | C5: PE CHARGES | E5: PROTECTIVE PIPE CHARGES | U5: <<PREV | V5: NEXT>>
B7: Question 1 | D7: How many plots do you have on your site?
C8: * Our standard and fixed charges only apply to schemes with between 5 and 250 plots. If your scheme is outside of this you will require a bespoke quote for your site.
B10: Answer 1 | F10: Plots
B12: Question 2 | D12: Do you require us to simply lay your new main (lay only) or excavate the trench and lay the main (open cut)?
B14: Answer 2 | C14: Open cut
B16: Question 3 | D16: What is the estimated length of main from the edge of your development site to our existing network? (ie distance to the SOW connection)
C17: * If you're unsure of the length at this stage enter the width of the adjacent road
C18: * The length we are referring to here is shown in the diagram on the right
B20: Answer 3 | F20: m
B31: Question 4 | D31: What are the excavation requirements for the connection pipework? | X31: Question 5 | Y31: What are the excavation requirements for the connection pipework?
C32: * These excavation requirements are for the length of main shown in Question 3 | Y32: * These excavation requirements are for the length of main shown in Question 4
B34: Answer 4 | C34: Excavation in the highway | G34: Options | K34: Descriptions | X34: Answer 5 | Y34: Excavation in the highway | AB34: Options | AC34: Descriptions
G35: No excavation | K35: You do not require Severn Trent or a Self Lay Provider to excavate the trench for the pipework | AB35: No excavation | AC35: You do not require Severn Trent or a Self Lay Provider to excavate the trench for the pipework
G36: Excavation in unmade ground | K36: You require Severn Trent or a Self Lay Provider to excavate the trench for the pipework in unmade ground. Unmade ground typically covers areas like grass verges where soft digs are required (ie there is no tarmac on the surface) | AB36: Excavation in unmade ground | AC36: You require Severn Trent or a Self Lay Provider to excavate the trench for the pipework in unmade ground. Unmade ground typically covers areas like grass verges where soft digs are required (ie there is no tarmac on the surface)
G37: Excavation in the highway | K37: You require Severn Trent or a Self Lay Provider to excavate the trench for the pipework in the highway. This option covers footpaths and types 3/4 and 1/2 carriageway. | AB37: Excavation in the highway | AC37: You require Severn Trent or a Self Lay Provider to excavate the trench for the pipework in the highway. This option covers footpaths and types 3/4 and 1/2 carriageway.
T42: © Severn Trent Water 2019

Sheet PE SITE SUM
B2: Summary of your total site estimated charges The total cost estimate for your scheme is based on the information you have provided
B5: HOME | C5: PE CHARGES | E5: PROTECTIVE PIPE CHARGES | U5: <<PREV | V5: NEXT>>
B7: This is shown as a single figure because our simplified PE 'per plot' charges include the cost of all contributing elements (eg pipework, connection, fittings, traffic management etc)
B10: Total cost | E10: =(IF('PE EST'!C14="Lay only",U15,U16)*'PE EST'!C10)+((VLOOKUP('PE EST'!C34,Q19:U21,5,FALSE))*MAX(0,'PE EST'!C20-22)) -> 0
B14: If you are choosing a self lay provider to lay your new main the total asset payment is below: | Q14: Per plot charges (PE)
Q15: Lay only | U15: 620.58
B16: Asset payment | E16: =E10*0.9 -> 0 | Q16: Open cut | U16: 896.3
H17: (equivalent to 90% of total construction costs)
Q18: Per metre charges >22m (PE)
Q19: No excavation | U19: 24.27
B20: If you are choosing Severn Trent to lay your new main the income offset and developer contribution are below: | Q20: Excavation in unmade ground | U20: 48.67
Q21: Excavation in the highway | U21: 122.46
B22: Income offset | E22: =E16 -> 0
H23: (equivalent to 90% of total construction costs)
B26: Developer Contribution | E26: =E10*0.1 -> 0 | H26: (equivalent to 10% of total construction costs)
T42: © Severn Trent Water 2019

Sheet PE SOW
B2: Calculate your source of water charges If you would like to understand the specific cost of the connection between the new main and the existing main (otherwise known as the source of water connection) we just need a little more information
B5: HOME | C5: PE CHARGES | E5: PROTECTIVE PIPE CHARGES | U5: <<PREV | V5: NEXT>>
B7: The SOW estimate covers the assets shown in the diagram
B17: Question 1 | D17: What are the excavation requirements offsite?
C18: * If you are unsure what your excavation requirements will be select the worst case scenario. This is likely to be 'type 1/2 carriageway' for self lay providers (highest charge)
B20: Answer 1 | C20: Type 1/2 CW | G20: Option | I20: Description
G21: Unmade | I21: You require Severn Trent or a Self Lay Provider to excavate the trench for the pipework in unmade ground. Unmade ground typically covers areas like grass verges where soft digs are required (ie there is no tarmac on the surface)
G23: Footpath | I23: You require excavation of the trench in a footpath by either Severn Trent or a Self Lay Provider
G24: Type 3/4 CW | I24: You require excavation of the trench in a type 3/4 carriageway by either Severn Trent or a Self Lay Provider
G25: Type 1/2 CW | I25: You require excavation of the trench in a type 1/2 carriageway by either Severn Trent or a Self Lay Provider
B27: Question 2 | D27: What length and diameter of main do you require Severn Trent to lay into the SOW connection?
C28: * If you are unsure of your pipework diameter at this stage please select 126 to 180mm
C30: Length | H30: Diameter
B31: Answer 2 | F31: m | H31: 126 to 180 | K31: mm
B33: Question 3 | D33: What diameter connection do you need between the new mains and our existing mains (also known as SOW connection)?
C34: * If you're unsure of the length at this stage enter the width of the adjacent road
C35: * The length we are referring to here is shown in the diagram above
B37: Answer 3 | C37: 150-200 | F37: mm
T42: © Severn Trent Water 2019

Sheet PE SOW SUM
B2: Summary of source of water estimated charges The total cost estimate for your scheme is based on the information you have provided
B5: HOME | C5: PE CHARGES | E5: PROTECTIVE PIPE CHARGES | U5: <<PREV
I8: Specific assumptions
B10: Total SOW cost | E10: =SUM(E18+E23) -> 9531.7415 | I10: The SOW cost includes an allowance for valves, wash outs and trial holes. This SOW cost does include the length of main connecting into the connection itself based on the answer to Question 2. The SOW cost assumes temporary two way traffic lights are required.
B16: This total SOW cost is split by contestable and non-contestable elements below:
B18: Off-site pipework cost | E18: =(Rates!C345+Rates!C353+Rates!C354)*0.1 -> 125.495 | I18: This pipework cost is solely the cost of the length of pipework specified in response to Question 2. It does not include any valves or other fittings.
A19: (laying of main into SOW)
G20: Contestable
B23: Physical connection | E23: =SUM(Rates!C342+Rates!C346+Rates!C347+Rates!C348+Rates!C355)*1.05 -> 9406.2465 | I23: This connection cost includes the physical connection, traffic management and fittings.
A24: includes valves and traffic management
G25: Non contestable
T42: © Severn Trent Water 2019

Sheet New PE EST
B2: Calculate your estimated PE pipe charges This estimate should be used for PE pipework schemes.
B5: HOME | C5: PE CHARGES | E5: PROTECTIVE PIPE CHARGES | U5: <<PREV | V5: NEXT>>
B8: The diagram to the right shows a typical mains site and highlights which assets are being referenced in each question.
B18: ASSETS WITHIN YOUR SITE BOUNDARY
B20: Question 1 | D20: What is the estimated length of main on your development site (within the boundaries of your site)?
C21: Often development sites require mains pipework of two or three different diameters, if you require more than one diameter of mains please specify the lengths of each below.
C22: * If you only require one diameter of on-site pipework within this estimate simply enter the total length & relevant diameter in the top row of three below
C23: * If you are unsure of your pipework diameter at this stage please select 126 to 180mm and enter the full length of mains within your development site alongside this diameter
C25: Diameter of pipe | G25: Length of each diameter
B26: Answer 1 | F26: mm | J26: m | K26: Please ensure at least one of the three pairs of answer cells have been populated. If a diameter has been selected but a length hasn't been entered or vice versa the 'on-site mains laying cost' shown in your estimate will be zero.
F27: mm | J27: m
F28: mm | J28: m
F29: mm | J29: m
B31: Question 2 | D31: What are the excavation requirements onsite?
C32: * This is solely for the length of mains within your development site
G34: Option | I34: Description
B35: Answer 2 | C35: Unmade | G35: No Excavation | I35: You do not require Severn Trent or a Self Lay Provider to excavate the trench for the pipework
G36: Unmade | I36: You require Severn Trent or a Self Lay Provider to excavate the trench for the pipework in unmade ground. Unmade ground typically covers areas like grass verges where soft digs are required (ie there is no tarmac on the surface)
T42: ='Front Sheet'!T38 -> © Severn Trent Water 2022

Sheet New PE EST (2)
B2: Calculate your estimated PE pipe charges This estimate should be used for PE pipe schemes.
B5: HOME | C5: PE CHARGES | E5: PROTECTIVE PIPE CHARGES | U5: <<PREV | V5: NEXT>>
B7: OFF-STE MAINS 'CONNECTION' LENGTH
B9: Question 1 | C9: 3 | D9: What is the estimated length of offsite main (from the edge of your development site to our existing network? ie distance to the SOW connection)
C10: * If you're unsure of the length at this stage enter the width of the adjacent road
B12: Answer 3 | F12: m
B14: Question 2 | C14: 4 | D14: What diameter of mains pipework do you require off-site?
C15: * If you're unsure of the diameter at this stage please select 126 to 180mm
B17: Answer 4 | F17: mm
B19: Question 2 | C19: 5 | D19: What are the excavation requirements off-site?
C20: * This is solely for the length of mains between the edge of your development site and our existing network
C21: * If you are unsure what your excavation requirements will be select the worst case scenario. This is likely to 'type 1/2 carriageway' (highest charge)
B24: Answer 5 | H24: Option | J24: Description
H25: Unmade | J25: You require Severn Trent or a Self Lay Provider to excavate the trench for the pipework in unmade ground. Unmade ground typically covers areas like grass verges where soft digs are required (ie there is no tarmac on the surface)
H27: Footpath | J27: You require excavation of the trench in a footpath by either Severn Trent or a Self Lay Provider
H28: Type 3/4 CW | J28: You require excavation of the trench in a type 3/4 carriageway by either Severn Trent or a Self Lay Provider
H29: Type 1/2 CW | J29: You require excavation of the trench in a type 1/2 carriageway by either Severn Trent or a Self Lay Provider
T42: ='Front Sheet'!T38 -> © Severn Trent Water 2022

Sheet New PE EST (3)
B2: Calculate your estimated PE pipe charges This estimate should be used for PE pipe schemes.
B5: HOME | C5: PE CHARGES | E5: PROTECTIVE PIPE CHARGES | U5: <<PREV | V5: NEXT>>
B7: PHYSICAL SOW CONNECTION
B9: Question 1 | C9: 6 | D9: What diameter connection do you need between the new mains and our existing mains (also known as SOW connection)?
C10: * If you are unsure of your pipework diameter at this stage please select 150-200mm
B12: Answer 6 | F12: mm
B16: EXISTING MAINS
B18: Question 2 | C18: 7 | D18: Are there any existing mains on site which need to be abandoned? (We refer to this as 'capping off').
C19: * Please enter the number of each type of asset below
B21: Answer 7 | D21: Asset to be capped off | J21: Quantity
D22: Cap off Abandoned main up to 4" in Tarmac/Footway
D23: Cap off Abandoned main 4-6" in Unmade
D24: Cap off Abandoned main up to 4-6" in Tarmac/Footway
D25: Cap off Abandoned main up to 6-9" in Tarmac/Footway
D26: Cap off Abandoned main 6-9" in Verge/Footway
D27: Cap off Abandoned main 9-12" in Tarmac/Footway
T42: ='Front Sheet'!T38 -> © Severn Trent Water 2022

Sheet New PE SUM
B2: Summary of PE pipe estimated charges The total estimated cost for your scheme based on the information you've entered is shown below.
B5: HOME | C5: PE CHARGES | E5: PROTECTIVE PIPE CHARGES | U5: <<PREV
I8: =SUM('New PE EST'!G26+'New PE EST'!G27+'New PE EST'!G28+'New PE EST (2)'!C12) -> 0
B9: Total cost (including SOW) | F9: ='PE Rates'!B244+'PE Rates'!B241+'PE Rates'!B222+'PE Rates'!B227 -> 
B14: The SOW estimate covers the assets shown in the diagram:
B22: This total SOW cost is split by contestable and non-contestable elements below:
J24: Specific assumptions
B26: Total SOW cost | F26: =F30+F34 -> 0 | J26: The SOW cost includes an allowance for valves, wash outs and trial holes. This SOW cost does include the length of main connecting into the connection itself based on the answer to Question 3. The SOW cost assumes temporary two way traffic lights are required.
B30: Offsite pipework cost | F30: ='PE Rates'!C223 -> 0 | J30: This pipework cost includes the cost of the length of pipework specified in response to Question 3 as well as the cost of sampling and a pressure test. It does not include any valves or other fittings. When Question 3 has been answered with zero, this cost assumes 2m of pipework is required.
D31: Contestable
B34: Physical connection cost | F34: ='PE Rates'!B244 -> 0 | J34: This connection cost includes the physical connection, traffic management and fittings. This connection assumes you are connecting into an existing barrier main which is more expensive than connecting into a PE main, to understand the connection costs of connecting into a PE main please use the PE estimator.
D35: Non-contestable
T42: ='Front Sheet'!T38 -> © Severn Trent Water 2022

Sheet queries AND VERSION CONTROL
B2: PE RATES | C2: check with steve first, as i dont think we can convert it if we dont have a published charge
B4: phase 2 tests - designers tested
B6: changed titles on PE Pipes pages
B8: Changed dates
B10: Changed prices to 2021-22
B12: corrected errors in RATES alignment
B14: developer contact
B16: break-down of add-ons
B17: old price | D17: new price
B18: 154.9546464 | D18: 170.44 | F18: Rates B204
B20: 588.7 | D20: 661.28 | F20: Rates B203
A23: Rates B203/4 | B23: UPT Average | E23: 3995.33 | F23: =IF(SUM('BARR EST'!$G$27:$I$29)<500,E23*0.9,IF(SUM('BARR EST'!$G$27:$I$29)>=500,E23*1)) -> 3595.797 | H23: Does this exist
B25: Connection valves Average | C25: =1297.02*3 -> 3891.06 | E25: 1297.02 Where is this price from | K25: question 5 and 6
B27: added turnkey attendance price into RATES (previously blank) - there are no dependant cells yet
A29: Rates B206 | B29: Added thrust block cost into SOW connection
A31: Rates C194:C210 | B31: 10% discount for sites where total meterage removed as not substantiated
A32: Rates B212:B213 | B32: 10% discount for sites where total meterage removed as not substantiated
A34: BARR SUMM page
A36: SOW to include | B36: Lights, Top T, Washout etc, B2B, Trial Hole, Spade Valve, thrust block | J36: this was after steer from Lee Harding and design team
B37: SOW connection + thrustblock and lights + Trial hole + b2b + UPT ave | J37: AMMENDED 20/04/2021 TO EXCLUDE TRIAL HOLE IF NO EXCAVATION
B51: changed version | D51: same as last year
A52: 2020-21 | B52: The estimated charges are calculated using Severn Trent's 2021/22 new connections charges.
B53: The estimated charges are calculated using Severn Trent's 2020/21 new connections charges.
A54: 2020-21 | B54: The estimated charges relate to mains requisitions work completed by Severn Trent.
B55: The estimated charges relate to mains requisitions work completed by Severn Trent.
A56: 2020-21 | B56: This estimator can be used to estimate the cost of the onsite mains scheme that needs to be paid based on the site information you provide.
B57: This estimator can be used to estimate the cost of the onsite mains scheme that needs to be paid based on the site information you provide.
A58: 2020-21 | B58: The estimated charges should not be taken as a final quote, agreed terms or an offer to carry out works at an agreed price.
B59: The estimated charges should not be taken as a final quote, agreed terms or an offer to carry out works at an agreed price.
A60: 2020-21 | B60: The estimated charges can be calculated for PE (polyethylene) sites and protective pipe sites.
B61: The estimated charges can be calculated for PE (polyethylene) sites and protective pipe sites.
A62: 2020-21 | B62: PE sites refer to standard pipework used when the ground is not contaminated and our estimation is based on a bespoke build up of a schedule of rates.
B63: PE sites refer to standard pipework used when the ground is not contaminated and our estimation is based on a bespoke build up of a schedule of rates.
A64: 2020-21 | B64: The estimated costs for onsite ground is unmade.
A66: 2020-21 | B66: Barrier sites refer to sites where protective pipework is required because the ground is contaminated and our estimation is based on a bespoke build up of a schedule of rates.
A68: 2020-21 | B68: Figures shown are 'gross' values ie this figure represents the total onsite cost of construction required for this site. Any work that Severn Trent will be required to carry out (whether contestable or non-contestable) has not been deducted, deferred or 'netted' off this figure.
A70: 2020-21 | B70: The estimated charges assumes temporary two way traffic lights within the SOW (source of water) cost however in reality some schemes may require more expensive traffic management (eg road closures).
A72: 2020-21 | B72: To provide a simple estimate of likely charges we have had to make a number of assumptions about your site, particularly for the estimation of protective pipe charges. A formal quote, based on full information provided by you about your site, may therefore differ.
B73: To provide a simple estimate of likely charges we have had to make a number of assumptions about your site. A formal quote, based on full information provided by you about your site, may therefore differ.
A74: 2020-21 | B74: The protective pipe & PE pipe estimated charges allows you to select onsite pipework with three lengths of different pipe diameters. Offsite pipework can only be selected as a single length of one diameter.
B75: The protective pipe & PE pipe estimated charges allows you to select onsite pipework with three lengths of different pipe diameters. Offsite pipework can only be selected as a single length of one diameter.
A76: 2020-21 | B76: The protective pipe & PE pipe estimated charges assumes temporary two way traffic lights within each scheme however in reality some schemes may require more expensive traffic management (eg road closures).
B77: The estimated charges assume temporary two way traffic lights within each scheme, however, in reality some schemes will require more expensive traffic management (eg road closures).
A78: 2020-21 | B78: The protective pipe & PE pipe estimated charges assumes the diameters of the valves, hydrants and wash outs based on the information you provide under question 1 of your protective pipe charges.
B79: The estimated charges assume the diameters of the valves, hydrants and wash outs based on the information you provide under question 1 of your protective pipe charges.
A80: 2020-21 | B80: The protective pipe & PE pipe estimated charges assumes that one pressure test per 100m of onsite mains is required.
B81: The estimated charges assume that one pressure test per 100m of onsite mains is required.
A82: 2020-21 | B82: The protective pipework estimated charges do not assume that there are any PRV requirements - quotes including PRVs are likely to be higher than the estimates shown in this tool
B83: The estimated charges do not assume that there are any PRV requirements - quotes including PRVs are likely to be higher than the estimates shown in this tool
A84: 2020-21 | B84: This estimate does not include any mains extension needed to serve the site.
B86: PUT PE AND PROTECTIVE TOGETHER TO ALLOW 2 CONNECTIONS AND NO #N/A
A88: REMOVED | B88: 10/90 SPLIT ON CONTESTABLE/NON CONTESTABLE
B89: VALVES SPLIT CHANGED TO MATCH LEE HARDING AND DESIGN TEAM'S SPEC
B90: ADDED TMA COSTS, ADDED THRUST BLOCK
A91: 2021-03-30 | B91: VERSION 1 | C91: ABOVE AMMENDMENTS
A92: 2021-03-31 | B92: VERSION 2 | C92: PE CHANGED TO REPLICATE BARRIER IN VALVES AND WASHOUTS
A93: 2021-04-16 | B93: VERSION 3 | C93: VALVES CALCULATION AMMENDED IN PE RATES
A94: 2021-04-20 | B94: VERSION 4 | C94: NO EXCAVATION ON PE Q5 CHANGED TO RESULT IN NO TRIAL HOLE REQUIRED
A95: 2021-04-21 | B95: VERSION 5 | C95: NO ONSITE MAINS GENERATES ERROR CODE - CORRECTED
B100: changed from | C100: to | D100: reason | H100: agreed with
A101: B2B average | B101: 588.7 | C101: 917.55 | D101: we have introduced a new larger size price

Sheet Sheet1
C2: ='BARR EST'!C33 -> 0
C4: ='New PE EST'!C35 -> Unmade

Sheet BARR EST
B2: Calculate your estimated protective pipe charges This estimate should be used for protective pipe schemes.
B5: HOME | C5: PE CHARGES | E5: PROTECTIVE PIPE CHARGES | U5: <<PREV | V5: NEXT>>
B7: Our charging structure for protective pipe schemes is bespoke and therefore we ask you a few more questions here than we do in the PE estimator so we can put together an estimate based on our more granular protective pipe charges.
B9: The diagram to the right shows a typical mains site and highlights which assets are being referenced in each question.
B19: ASSETS WITHIN YOUR SITE BOUNDARY
B21: Question 1 | D21: What is the estimated length of main on your development site (within the boundaries of your site)?
C22: Often development sites require mains pipework of two or three different diameters, if you require more than one diameter of mains please specify the lengths of each below.
C23: * If you only require one diameter of on-site pipework within this estimate simply enter the total length & relevant diameter in the top row of three below
C24: * If you are unsure of your pipework diameter at this stage please select 126 to 180mm and enter the full length of mains within your development site alongside this diameter
C26: Diameter of pipe | G26: Length of each diameter
B27: Answer 1 | F27: mm | J27: m | K27: Please ensure at least one of the three pairs of answer cells have been populated. If a diameter has been selected but a length hasn't been entered or vice versa the 'on-site mains laying cost' shown in your estimate will be zero.
F28: mm | J28: m
F29: mm | J29: m
B31: Question 2 | D31: Do you require us to simply lay your new main (lay only) or excavate the trench and lay the main (open cut)?
B33: Answer 2 | G33: Option | I33: Description
G34: No Excavation | I34: You do not require Severn Trent or a Self Lay Provider to excavate the trench for the pipework
G35: Unmade | I35: You require Severn Trent or a Self Lay Provider to excavate the trench for the pipework in unmade ground. Unmade ground typically covers areas like grass verges where soft digs are required (ie there is no tarmac on the surface)
T42: ='Front Sheet'!T38 -> © Severn Trent Water 2022

Sheet BARR EST (2)
B2: Calculate your estimated protective pipe charges This estimate should be used for protective pipe schemes.
B5: HOME | C5: PE CHARGES | E5: PROTECTIVE PIPE CHARGES | U5: <<PREV | V5: NEXT>>
B7: OFF-STE MAINS 'CONNECTION' LENGTH
B9: Question 1 | C9: 3 | D9: What is the estimated length of offsite main (from the edge of your development site to our existing network? ie distance to the SOW connection)
C10: * If you're unsure of the length at this stage enter the width of the adjacent road
B12: Answer 3 | F12: m
B14: Question 2 | C14: 4 | D14: What diameter of mains pipework do you require off-site?
C15: * If you're unsure of the diameter at this stage please select 126 to 180mm
B17: Answer 4 | F17: mm
B19: Question 2 | C19: 5 | D19: What are the excavation requirements off-site?
C20: * This is solely for the length of mains between the edge of your development site and our existing network
C21: * If you are unsure what your excavation requirements will be select the worst case scenario. This is likely to be 'type 1/2 carriageway' for developers (highest charge)
B24: Answer 5 | H24: Option | J24: Description
H25: Unmade | J25: You require Severn Trent or a Self Lay Provider to excavate the trench for the pipework in unmade ground. Unmade ground typically covers areas like grass verges where soft digs are required (ie there is no tarmac on the surface)
H27: Footpath | J27: You require excavation of the trench in a footpath by either Severn Trent or a Self Lay Provider
H28: Type 3/4 CW | J28: You require excavation of the trench in a type 3/4 carriageway by either Severn Trent or a Self Lay Provider
H29: Type 1/2 CW | J29: You require excavation of the trench in a type 1/2 carriageway by either Severn Trent or a Self Lay Provider
T42: ='Front Sheet'!T38 -> © Severn Trent Water 2022

Sheet BARR EST (3)
B2: Calculate your estimated protective pipe charges This estimate should be used for protective pipe schemes.
B5: HOME | C5: PE CHARGES | E5: PROTECTIVE PIPE CHARGES | U5: <<PREV | V5: NEXT>>
B7: PHYSICAL SOW CONNECTION
B9: Question 1 | C9: 6 | D9: What diameter connection do you need between the new mains and our existing mains (also known as SOW connection)?
C10: * If you are unsure of your pipework diameter at this stage please select 150-200mm
B12: Answer 6 | F12: mm
B16: EXISTING MAINS
B18: Question 2 | C18: 7 | D18: Are there any existing mains on site which need to be abandoned? (We refer to this as 'capping off').
C19: * Please enter the number of each type of asset below
B21: Answer 7 | D21: Asset to be capped off | J21: Quantity
D22: Cap off Abandoned main up to 4" in Tarmac/Footway
D23: Cap off Abandoned main 4-6" in Unmade
D24: Cap off Abandoned main up to 4-6" in Tarmac/Footway
D25: Cap off Abandoned main up to 6-9" in Tarmac/Footway
D26: Cap off Abandoned main 6-9" in Verge/Footway
D27: Cap off Abandoned main 9-12" in Tarmac/Footway
T42: ='Front Sheet'!T38 -> © Severn Trent Water 2022

Sheet BARR SUM
B2: Summary of protective pipe estimated charges The total estimated cost for your scheme based on the information you've entered is shown below.
B5: HOME | C5: PE CHARGES | E5: PROTECTIVE PIPE CHARGES | U5: <<PREV
B8: Total cost (including SOW) | F8: =IF(I8=0,"£0.00",SUM(Rates!C195+SUM(Rates!B216:B218)+SUM(Rates!C200:C205))) -> £0.00 | I8: =SUM('BARR EST'!G27+'BARR EST'!G28+'BARR EST'!G29+'BARR EST (2)'!C12) -> 0
A24: This total SOW cost is split by contestable and non-contestable elements below: | J24: Specific assumptions
B26: Total SOW cost | F26: =F30+F34 -> 0 | J26: The SOW cost includes an allowance for valves, wash outs and trial holes. This SOW cost does include the length of main connecting into the connection itself based on the answer to Question 3. The SOW cost assumes temporary two way traffic lights are required.
B30: Offsite pipework cost | F30: =IF(F8="£0.00","£0.00",Rates!B196) -> £0.00 | J30: This pipework cost includes the cost of the length of pipework specified in response to Question 3 as well as the cost of sampling and a pressure test. It does not include any valves or other fittings. When Question 3 has been answered with zero, this cost assumes 2m of pipework is required.
D31: Contestable
B34: Physical connection cost | F34: =IF(F8="£0.00","£0.00",Rates!B218) -> £0.00 | J34: This connection cost includes the physical connection, traffic management and fittings. This connection assumes you are connecting into an existing barrier main which is more expensive than connecting into a PE main, to understand the connection costs of connecting into a PE main please use the PE estimator.
D35: Non-contestable
T42: ='Front Sheet'!T38 -> © Severn Trent Water 2022

Sheet PE Rates (hidden)
A1: Full description of required works | E1: CONCATENATE | F1: ST charge (£) | G1: Diameter | H1: Excavation requirement
A2: Mains laying rates
A3: Blank dummy lines to enable formula for onsite mains cost to work | E3: =CONCATENATE(G3,H3) -> No excavation | F3: 0 | H3: No excavation
A4: Blank dummy lines to enable formula for onsite mains cost to work | E4: Unmade | F4: 0 | H4: Unmade
A5: Blank dummy lines to enable formula for onsite mains cost to work | E5: Footpath | F5: 0 | H5: Footpath
A6: Blank dummy lines to enable formula for onsite mains cost to work | E6: Type 3/4 CW | F6: 0 | H6: Type 3/4 CW
A7: Blank dummy lines to enable formula for onsite mains cost to work | E7: Type 1/2 CW | F7: 0 | H7: Type 1/2 CW
A8: PE main laying, n.e 2m depth, up to 63mm NB No excavation | E8: up to 63No excavation | F8: 20.23 | G8: up to 63 | H8: No excavation
A9: PE main laying, n.e 2m depth, up to 63mm NB in Unmade | E9: up to 63Unmade | F9: 50.36 | G9: up to 63 | H9: Unmade
A10: PE main laying, n.e 2m depth, up to 63mm NB in Footpath | E10: up to 63Footpath | F10: 118.57 | G10: up to 63 | H10: Footpath
A11: PE main laying, n.e 2m depth, up to 63mm NB in Type 3/4 CW | E11: up to 63Type 3/4 CW | F11: 156.08 | G11: up to 63 | H11: Type 3/4 CW
A12: PE main laying, n.e 2m depth, up to 63mm NB in Type 1/2 CW | E12: up to 63Type 1/2 CW | F12: 180.83 | G12: up to 63 | H12: Type 1/2 CW
A13: PE main laying, n.e 2m depth, up to 90mm NB No excavation | E13: 64 to 90No excavation | F13: 22.18 | G13: 64 to 90 | H13: No excavation
A14: PE main laying, n.e 2m depth, up to 90mm NB in Unmade | E14: 64 to 90Unmade | F14: 52.32 | G14: 64 to 90 | H14: Unmade
A15: PE main laying, n.e 2m depth, up to 90mm NB in Footpath | E15: 64 to 90Footpath | F15: 120.63 | G15: 64 to 90 | H15: Footpath
A16: PE main laying, n.e 2m depth, up to 90mm NB in Type 3/4 CW | E16: 64 to 90Type 3/4 CW | F16: 158.23 | G16: 64 to 90 | H16: Type 3/4 CW
A17: PE main laying, n.e 2m depth, up to 90mm NB in Type 1/2 CW | E17: 64 to 90Type 1/2 CW | F17: 182.95 | G17: 64 to 90 | H17: Type 1/2 CW
A18: PE main laying, n.e 2m depth, up to 125mm NB No excavation | E18: 91 to 125No excavation | F18: 26.35 | G18: 91 to 125 | H18: No excavation
A19: PE main laying, n.e 2m depth, up to 125mm NB in Unmade | E19: 91 to 125Unmade | F19: 56.47 | G19: 91 to 125 | H19: Unmade
A20: PE main laying, n.e 2m depth, up to 125mm NB in Footpath | E20: 91 to 125Footpath | F20: 124.86 | G20: 91 to 125 | H20: Footpath
A21: PE main laying, n.e 2m depth, up to 125mm NB in Type 3/4 CW | E21: =CONCATENATE(G21,H21) -> 91 to 125Type 3/4 CW | F21: 162.56 | G21: 91 to 125 | H21: Type 3/4 CW
A22: PE main laying, n.e 2m depth, up to 125mm NB in Type 1/2 CW | E22: 91 to 125Type 1/2 CW | F22: 187.3 | G22: 91 to 125 | H22: Type 1/2 CW
A23: PE main laying, n.e 2m depth, up to 180mm NB No excavation | E23: 126 to 180No excavation | F23: 39.21 | G23: 126 to 180 | H23: No excavation
A24: PE main laying, n.e 2m depth, up to 180mm NB in Unmade | E24: 126 to 180Unmade | F24: 75.83 | G24: 126 to 180 | H24: Unmade
A25: PE main laying, n.e 2m depth, up to 180mm NB in Footpath | E25: 126 to 180Footpath | F25: 147.06 | G25: 126 to 180 | H25: Footpath
A26: PE main laying, n.e 2m depth, up to 180mm NB in Type 3/4 CW | E26: 126 to 180Type 3/4 CW | F26: 191.58 | G26: 126 to 180 | H26: Type 3/4 CW
A27: PE main laying, n.e 2m depth, up to 180mm NB in Type 1/2 CW | E27: 126 to 180Type 1/2 CW | F27: 197.37 | G27: 126 to 180 | H27: Type 1/2 CW
A28: PE main laying, n.e 2m depth, up to 200mm NB No excavation | E28: 181 to 200No excavation | F28: 50.04 | G28: 181 to 200 | H28: No excavation
A29: PE main laying, n.e 2m depth, up to 200mm NB in Unmade | E29: 181 to 200Unmade | F29: 91.7 | G29: 181 to 200 | H29: Unmade
A30: PE main laying, n.e 2m depth, up to 200mm NB in Footpath | E30: 181 to 200Footpath | F30: 162.51 | G30: 181 to 200 | H30: Footpath
A31: PE main laying, n.e 2m depth, up to 200mm NB in Type 3/4 CW | E31: 181 to 200Type 3/4 CW | F31: 218.11 | G31: 181 to 200 | H31: Type 3/4 CW
A32: PE main laying, n.e 2m depth, up to 200mm NB in Type 1/2 CW | E32: 181 to 200Type 1/2 CW | F32: 232.43 | G32: 181 to 200 | H32: Type 1/2 CW
A33: PE main laying, n.e 2m depth, up to 250 mm NB No excavation | E33: 201 to 250No excavation | F33: 62.8 | G33: 201 to 250 | H33: No excavation
A34: PE main laying, n.e 2m depth, up to 250mm NB in Unmade | E34: 201 to 250Unmade | F34: 107.37 | G34: 201 to 250 | H34: Unmade
A35: PE main laying, n.e 2m depth, up to 250mm NB in Footpath | E35: 201 to 250Footpath | F35: 178.43 | G35: 201 to 250 | H35: Footpath
A36: PE main laying, n.e 2m depth, up to 250mm NB in Type 3/4 CW | E36: 201 to 250Type 3/4 CW | F36: 244 | G36: 201 to 250 | H36: Type 3/4 CW
A37: PE main laying, n.e 2m depth, up to 250mm NB in Type 1/2 CW | E37: 201 to 250Type 1/2 CW | F37: 259.53 | G37: 201 to 250 | H37: Type 1/2 CW
A38: PE main laying, n.e 2m depth, up to 355mm NB No excavation | E38: 251 to 355No excavation | F38: 123.91 | G38: 251 to 355 | H38: No excavation
A39: PE main laying, n.e 2m depth, up to 355mm NB in Unmade | E39: 251 to 355Unmade | F39: 177.91 | G39: 251 to 355 | H39: Unmade
A40: PE main laying, n.e 2m depth, up to 355mm NB in Footpath | E40: 251 to 355Footpath | F40: 283.73 | G40: 251 to 355 | H40: Footpath
A41: PE main laying, n.e 2m depth, up to 355mm NB in Type 3/4 CW | E41: 251 to 355Type 3/4 CW | F41: 344.15 | G41: 251 to 355 | H41: Type 3/4 CW
A42: PE main laying, n.e 2m depth, up to 355mm NB in Type 1/2 CW | E42: 251 to 355Type 1/2 CW | F42: 395.35 | G42: 251 to 355 | H42: Type 1/2 CW
A43: PE main laying, n.e 2m depth, up to 450mm NB No excavation | E43: 356 to 450No excavation | F43: 181.64 | G43: 356 to 450 | H43: No excavation
A44: PE main laying, n.e 2m depth, up to 450mm NB in Unmade | E44: 356 to 450Unmade | F44: 252.87 | G44: 356 to 450 | H44: Unmade
A45: PE main laying, n.e 2m depth, up to 450mm NB in Footpath | E45: 356 to 450Footpath | F45: 363.83 | G45: 356 to 450 | H45: Footpath
A46: PE main laying, n.e 2m depth, up to 450mm NB in Type 3/4 CW | E46: 356 to 450Type 3/4 CW | F46: 431.35 | G46: 356 to 450 | H46: Type 3/4 CW
A47: PE main laying, n.e 2m depth, up to 450mm NB in Type 1/2 CW | E47: 356 to 450Type 1/2 CW | F47: 537.37 | G47: 356 to 450 | H47: Type 1/2 CW
A48: Under pressure connections
A49: Under pressure connection. Body not exceeding 100mm NB. No Excavation | E49: =CONCATENATE(G49,H49) -> up to 100No excavation | F49: 2356.78 | G49: up to 100 | H49: No excavation
A50: Under pressure connection body not exceeding 100mm NB. Unmade | E50: up to 100Unmade | F50: 2121.96 | G50: up to 100 | H50: Unmade
A51: Under pressure connection. Body not exceeding 100mm NB. Footpath | E51: up to 100Footpath | F51: 2706.26 | G51: up to 100 | H51: Footpath
A52: Under pressure connection Body not exceeding 100mm NB. Type 3/4 carriageway | E52: up to 100Type 3/4 CW | F52: 3423.42 | G52: up to 100 | H52: Type 3/4 CW
A53: Under pressure connection Body not exceeding 100mm NB. Type 1/2 carriageway | E53: up to 100Type 1/2 CW | F53: 3569.28 | G53: up to 100 | H53: Type 1/2 CW
A54: Under pressure connection Body 150-200mm NB. No Excavation | E54: 150-200No excavation | F54: 2314.02 | G54: 150-200 | H54: No excavation
A55: Under pressure connection Body 150-200mm NB. Unmade | E55: 150-200Unmade | F55: 3009.93 | G55: 150-200 | H55: Unmade
A56: Under pressure connection Body 150-200mm NB. Footpath | E56: 150-200Footpath | F56: 3873.58 | G56: 150-200 | H56: Footpath
A57: Under pressure connection Body 150-200mm NB. Type 3/4 carriageway | E57: 150-200Type 3/4 CW | F57: 4518.11 | G57: 150-200 | H57: Type 3/4 CW
A58: Under pressure connection Body 150-200mm NB. Type 1/2 carriageway | E58: 150-200Type 1/2 CW | F58: 4693.13 | G58: 150-200 | H58: Type 1/2 CW
A59: Under pressure connection Body 225-300 NB. No Excavation | E59: 225-300No excavation | F59: 3964.72 | G59: 225-300 | H59: No excavation
A60: Under pressure connection Body 225-300 NB. Unmade | E60: 225-300Unmade | F60: 4963.97 | G60: 225-300 | H60: Unmade
A61: Under pressure connection Body 225-300 NB. Footpath | E61: 225-300Footpath | F61: 5882.6 | G61: 225-300 | H61: Footpath
A62: Under pressure connection Body 225-300 NB. Type 3/4 carriageway | E62: 225-300Type 3/4 CW | F62: 6867.23 | G62: 225-300 | H62: Type 3/4 CW
A63: Under pressure connection Body 225-300 NB. Type 1/2 carriageway | E63: 225-300Type 1/2 CW | F63: 7124.65 | G63: 225-300 | H63: Type 1/2 CW
A64: Under pressure connection Body 375-450 NB. No Excavation | E64: 375-450No excavation | F64: 10106.03 | G64: 375-450 | H64: No excavation
A65: Under pressure connection Body 375-450 NB. Unmade | E65: 375-450Unmade | F65: 12007.75 | G65: 375-450 | H65: Unmade
A66: Under pressure connection Body 375-450 NB. Footpath | E66: 375-450Footpath | F66: 14159.52 | G66: 375-450 | H66: Footpath
A67: Under pressure connection Body 375-450 NB. Type 3/4 carriageway | E67: 375-450Type 3/4 CW | F67: 17637.45 | G67: 375-450 | H67: Type 3/4 CW
A68: Under pressure connection Body 375-450 NB. Type 1/2 carriageway | E68: 375-450Type 1/2 CW | F68: 18098.16 | G68: 375-450 | H68: Type 1/2 CW
A69: Valves, hydrants, wash outs
A70: Install SV/FH/WO/Tee up to 4" No Excavation | E70: =CONCATENATE(G70,H70) -> up to 63No excavation | F70: 441.25 | G70: up to 63 | H70: No excavation
A71: Install SV/FH/WO/Tee up to 4" in Unmade | E71: up to 63Unmade | F71: 616.16 | G71: up to 63 | H71: Unmade
A72: Install SV/FH/WO/Tee up to 4" in Footpath | E72: up to 63Footpath | F72: 754.27 | G72: up to 63 | H72: Footpath
A73: Install SV/FH/WO/Tee up to 4" in Type 3/4 carriageway | E73: up to 63Type 3/4 CW | F73: 798.18 | G73: up to 63 | H73: Type 3/4 CW
A74: Install SV/FH/WO/Tee up to 4" in Type 1/2 carriageway | E74: up to 63Type 1/2 CW | F74: 839.09 | G74: up to 63 | H74: Type 1/2 CW
A75: Install SV/FH/WO/Tee up to 4" No Excavation | E75: 64 to 90No excavation | F75: 441.25 | G75: 64 to 90 | H75: No excavation
A76: Install SV/FH/WO/Tee up to 4" in Unmade | E76: 64 to 90Unmade | F76: 616.16 | G76: 64 to 90 | H76: Unmade
A77: Install SV/FH/WO/Tee up to 4" in Footpath | E77: 64 to 90Footpath | F77: 754.27 | G77: 64 to 90 | H77: Footpath
A78: Install SV/FH/WO/Tee up to 4" in Type 3/4 carriageway | E78: 64 to 90Type 3/4 CW | F78: 798.18 | G78: 64 to 90 | H78: Type 3/4 CW
A79: Install SV/FH/WO/Tee up to 4" in Type 1/2 carriageway | E79: 64 to 90Type 1/2 CW | F79: 839.09 | G79: 64 to 90 | H79: Type 1/2 CW
A80: Install SV/FH/WO/Tee up to 4" No Excavation | E80: 91 to 125No excavation | F80: 441.25 | G80: 91 to 125 | H80: No excavation
A81: Install SV/FH/WO/Tee up to 4" in Unmade | E81: 91 to 125Unmade | F81: 616.16 | G81: 91 to 125 | H81: Unmade
A82: Install SV/FH/WO/Tee up to 4" in Footpath | E82: 91 to 125Footpath | F82: 754.27 | G82: 91 to 125 | H82: Footpath
A83: Install SV/FH/WO/Tee up to 4" in Type 3/4 carriageway | E83: 91 to 125Type 3/4 CW | F83: 798.18 | G83: 91 to 125 | H83: Type 3/4 CW
A84: Install SV/FH/WO/Tee up to 4" in Type 1/2 carriageway | E84: 91 to 125Type 1/2 CW | F84: 839.09 | G84: 91 to 125 | H84: Type 1/2 CW
A85: Install SV/FH/WO/Tee up to 6" No Excavation | E85: 126 to 180No excavation | F85: 680.02 | G85: 126 to 180 | H85: No excavation
A86: Install SV/FH/WO/Tee up to 6" in Unmade | E86: 126 to 180Unmade | F86: 681.6 | G86: 126 to 180 | H86: Unmade
A87: Install SV/FH/WO/Tee up to 6" in Footpath | E87: 126 to 180Footpath | F87: 821.94 | G87: 126 to 180 | H87: Footpath
A88: Install SV/FH/WO/Tee up to 6" in Type 3/4 carriageway | E88: 126 to 180Type 3/4 CW | F88: 871.73 | G88: 126 to 180 | H88: Type 3/4 CW
A89: Install SV/FH/WO/Tee up to 6" in Type 1/2 carriageway | E89: 126 to 180Type 1/2 CW | F89: 914.68 | G89: 126 to 180 | H89: Type 1/2 CW
A90: Install SV/FH/WO/Tee up to 9" No Excavation | E90: 181 to 200No excavation | F90: 1043.91 | G90: 181 to 200 | H90: No excavation
A91: Install SV/FH/WO/Tee up to 9" in Unmade | E91: 181 to 200Unmade | F91: 1044.97 | G91: 181 to 200 | H91: Unmade
A92: Install SV/FH/WO/Tee up to 9" in Footpath | E92: 181 to 200Footpath | F92: 1197.39 | G92: 181 to 200 | H92: Footpath
A93: Install SV/FH/WO/Tee up to 9" in Type 3/4 carriageway | E93: 181 to 200Type 3/4 CW | F93: 1255.81 | G93: 181 to 200 | H93: Type 3/4 CW
A94: Install SV/FH/WO/Tee up to 9" in Type 1/2 carriageway | E94: 181 to 200Type 1/2 CW | F94: 1301.19 | G94: 181 to 200 | H94: Type 1/2 CW
A95: Install SV/FH/WO/Tee up to 9" No Excavation | E95: 201 to 250No excavation | F95: 1043.91 | G95: 201 to 250 | H95: No excavation
A96: Install SV/FH/WO/Tee up to 9" in Unmade | E96: 201 to 250Unmade | F96: 1044.97 | G96: 201 to 250 | H96: Unmade
A97: Install SV/FH/WO/Tee up to 9" in Footpath | E97: 201 to 250Footpath | F97: 1197.39 | G97: 201 to 250 | H97: Footpath
A98: Install SV/FH/WO/Tee up to 9" in Type 3/4 carriageway | E98: 201 to 250Type 3/4 CW | F98: 1255.81 | G98: 201 to 250 | H98: Type 3/4 CW
A99: Install SV/FH/WO/Tee up to 9" in Type 1/2 carriageway | E99: 201 to 250Type 1/2 CW | F99: 1301.19 | G99: 201 to 250 | H99: Type 1/2 CW
A100: Install SV/FH/WO/Tee up to 12" No Excavation | E100: 251 to 355No excavation | F100: 2156.1 | G100: 251 to 355 | H100: No excavation
A101: Install SV/FH/WO/Tee up to 12" in Unmade | E101: 251 to 355Unmade | F101: 2371.79 | G101: 251 to 355 | H101: Unmade
A102: Install SV/FH/WO/Tee up to 12" in Footpath | E102: 251 to 355Footpath | F102: 2554.67 | G102: 251 to 355 | H102: Footpath
A103: Install SV/FH/WO/Tee up to 12" in Type 3/4 carriageway | E103: 251 to 355Type 3/4 CW | F103: 2638.34 | G103: 251 to 355 | H103: Type 3/4 CW
A104: Install SV/FH/WO/Tee up to 12" in Type 1/2 carriageway | E104: 251 to 355Type 1/2 CW | F104: 2688.38 | G104: 251 to 355 | H104: Type 1/2 CW
A105: Install SV/FH/WO/Tee up to 18" No Excavation | E105: 356 to 450No excavation | F105: 7673.99 | G105: 356 to 450 | H105: No excavation
A106: Install SV/FH/WO/Tee up to 18" in Unmade | E106: 356 to 450Unmade | F106: 8262.53 | G106: 356 to 450 | H106: Unmade
A107: Install SV/FH/WO/Tee up to 18" in Footpath | E107: 356 to 450Footpath | F107: 8714.08 | G107: 356 to 450 | H107: Footpath
A108: Install SV/FH/WO/Tee up to 18" in Type 3/4 carriageway | E108: 356 to 450Type 3/4 CW | F108: 8815.06 | G108: 356 to 450 | H108: Type 3/4 CW
A109: Install SV/FH/WO/Tee up to 18" in Type 1/2 carriageway | E109: 356 to 450Type 1/2 CW | F109: 11274.92 | G109: 356 to 450 | H109: Type 1/2 CW
A110: Cap offs
A111: Cap off Abandoned main up to 4" in Tarmac/Footway | F111: 755.08 | G111: 4" | H111: Tarmac/footway
A112: Cap off Abandoned main 4-6" in Unmade | F112: 580.59 | G112: 4 - 6" | H112: Unmade
A113: Cap off Abandoned main up to 4-6" in Tarmac/Footway | F113: 859.18 | G113: 4 - 6" | H113: Tarmac/footway
A114: Cap off Abandoned main up to 6-9" in Tarmac/Footway | F114: 1126.9 | G114: 6 - 9" | H114: Tarmac/footway
A115: Cap off Abandoned main 6-9" in Verge/Footway | F115: 1029.55 | G115: 6 - 9" | H115: Verge/footway
A116: Cap off Abandoned main 9-12" in Tarmac/Footway | F116: 1456.13 | G116: 9 - 12" | H116: Tarmac/footway
A117: Pressure Test & Chlorination
A118: Pressure Test & Chlorination | F118: 874.53
A119: Trial hole
A120: Trial hole in unmade | E120: Unmade | F120: 149.38 | H120: Unmade
A121: Trial hole in Footpath | E121: Footpath | F121: 278.29 | H121: Footpath
A122: Trial hole in type 3/4 | E122: Type 3/4 CW | F122: 405.99 | H122: Type 3/4 CW
A123: Trial hole in type 2/1 | E123: Type 1/2 CW | F123: 594.06 | H123: Type 1/2 CW
A124: Shut off
A125: Shut off (Turnkey attendance) | F125: 638.73
A126: B2B
A127: Back to back connection; includes removal of end hydrants, maximum connection distance 2m; not exceeding 125mm diameter | F127: 945.68
A128: Back to back connection; includes removal of end hydrants, maximum connection distance 2m; not exceeding 180mm diameter | F128: 986.6
A129: Back to back connection; includes removal of end hydrants, maximum connection distance 2m; not exceeding 250mm diameter | F129: 1726.53
A130: Sampling
A131: Sampling; where not included within a turnkey operation - applies to separate site visit solely for the purpose of sampling, as instructed | F131: 252.92
A132: Traffic lights
A133: 2 way temporary traffic lights | F133: 883.48
A134: 3 way temporary traffic lights | F134: 1008.75
A135: 4 way temporary traffic lights | F135: 1118.77
A138: Pipe diameter drop down options
A140: up to 63
A141: 64 to 90
A142: 91 to 125
A143: 126 to 180
A144: 181 to 200
A145: 201 to 250
A146: 251 to 355
A147: 356 to 450
A149: Excavation drop down options
A151: No excavation
A152: Unmade
A153: Footpath
A154: Type 3/4 CW
A155: Type 1/2 CW
A157: Traffic management drop down options
A158: 2 way temporary traffic lights
A159: 3 way temporary traffic lights
A160: 4 way temporary traffic lights
A162: PE lay type drop down options
A163: Lay only
A164: Open cut
A166: PE offsite excavation drop down options
A167: No excavation
A168: Excavation in unmade ground
A169: Excavation in the highway
A171: Pop up for PE <5 or >250 plots
A172: You have selected a number of plots which is less than 5 or over 250, this estimator tool is not applicable for this number of plots so you will require a bespoke quote for your site.
A174: Concatenate for PE onsite mains laying rate 1
A175: =CONCATENATE(New PE [1]EST!C26,New PE [1]EST!C35) ->  | C175: Cost of onsite barrier length 1 | E175: =(VLOOKUP(A175,E3:F47,2,FALSE))*'New PE EST'!G26 -> 
A177: Concatenate for PE onsite mains laying rate 2
A178: =CONCATENATE('New PE EST'!C27,'New PE EST'!C35) -> Unmade | C178: Cost of onsite barrier length 2 | E178: =(VLOOKUP(A178,E3:F47,2,FALSE))*'New PE EST'!G27 -> 0
A180: Concatenate for PE onsite mains laying rate 3
A181: =CONCATENATE('New PE EST'!C28,'New PE EST'!C35) -> Unmade | C181: Cost of onsite barrier length 3 | E181: =(VLOOKUP(A181,E3:F47,2,FALSE))*'New PE EST'!G28 -> 0
A183: Concatenate for PE onsite mains laying rate 4
A184: =CONCATENATE('New PE EST'!C29,'New PE EST'!C35) -> Unmade | C184: Cost of onsite barrier length 3 | E184: =(VLOOKUP(A184,E3:F47,2,FALSE))*'New PE EST'!G29 -> 0
A185: Concatenate for PE offsite mains laying rate
A186: =CONCATENATE('New PE EST (2)'!C17,'New PE EST (2)'!C24) -> 
A188: Concatenate for PE under pressure connections
A189: =CONCATENATE('New PE EST (3)'!C12,'New PE EST (2)'!C24) -> 
A191: Valves and uplift at SOW barrier (adjustment post audit and testing)
A192: Concatenate for offsite valve
A193: =CONCATENATE('New PE EST (2)'!C17,'New PE EST (2)'!C24) -> 
A194: SOW valve charge (per unit) | B194: =VLOOKUP(A193,E70:F109,2,FALSE) -> 
A195: SOW valve charge for 3 (assume 3 at SOW) | B195: =B194*3 -> 
A197: Flat uplift as per audit/sample averages (16.77% increase) | B197: 1.1677
A199: SOW cost for simply UPT | B199: =(VLOOKUP('PE Rates'!A189,'PE Rates'!E49:F68,2,FALSE)) -> 
A200: Traffic mgt | B200: =F133 -> 883.48
A201: Adding valves | B201: =B199+B200+B195 -> 
A203: Concatenate for Barrier under pressure connections
A204: up to 100
A205: 150-200 | C205: Number of pressure tests - ensuring no less than 0 | F205: =MAX(1,('New PE EST'!G26+'New PE EST'!G27+'New PE EST'!G28+'New PE EST'!G29)/100) -> 1
A206: 225-300 | C206: Ensure rounding to a single figure | F206: =ROUND(F205,0) -> 1
A207: 375-450
A209: Concatenate for valves, hydrants and wash outs | C209: Length | E209: Divided by 100m | G209: Rounding to a single figure | H209: Add two
A210: =CONCATENATE('New PE EST'!C26,'New PE EST'!C35) -> Unmade | B210: =IF(ISNA(VLOOKUP('PE Rates'!A210,'PE Rates'!$E$70:$F$109,2,FALSE)*H210),"0.00",VLOOKUP('PE Rates'!A210,'PE Rates'!$E$70:$F$109,2,FALSE)*H210) -> 0.00 | C210: ='New PE EST'!G26 -> 0 | D210: m | E210: =C210/50 -> 0 | G210: =ROUND(E210,0) -> 0 | H210: =G210+2 -> 2
A211: =CONCATENATE('New PE EST'!C27,'New PE EST'!C35) -> Unmade | B211: =IF(ISNA(VLOOKUP('PE Rates'!A211,'PE Rates'!$E$70:$F$109,2,FALSE)*H211),"0.00",VLOOKUP('PE Rates'!A211,'PE Rates'!$E$70:$F$109,2,FALSE)*H211) -> 0.00 | C211: ='New PE EST'!G27 -> 0 | D211: m | E211: =C211/50 -> 0 | G211: =ROUND(E211,0) -> 0 | H211: =G211+2 -> 2
A212: =CONCATENATE('New PE EST'!C28,'New PE EST'!C35) -> Unmade | B212: =IF(ISNA(VLOOKUP('PE Rates'!A212,'PE Rates'!$E$70:$F$109,2,FALSE)*H212),"0.00",VLOOKUP('PE Rates'!A212,'PE Rates'!$E$70:$F$109,2,FALSE)*H212) -> 0.00 | C212: ='New PE EST'!G28 -> 0 | D212: m | E212: =C212/50 -> 0 | G212: 0 | H212: 2
A213: =CONCATENATE('New PE EST'!C29,'New PE EST'!C35) -> Unmade | B213: =IF(ISNA(VLOOKUP('PE Rates'!A213,'PE Rates'!$E$70:$F$109,2,FALSE)*H213),"0.00",VLOOKUP('PE Rates'!A213,'PE Rates'!$E$70:$F$109,2,FALSE)*H213) -> 0.00 | C213: ='New PE EST'!G29 -> 0 | D213: m | E213: =C213/50 -> 0 | G213: 0 | H213: 2
C214: =SUM(C210:C213) -> 0 | D214: m | E214: =SUM(E210:E213) -> 0 | G214: =SUM(G210:G213) -> 0 | H214: =SUM(H210:H213) -> 8
A216: How many required (1 per 100m + 2)
B220: =IFERROR((B237+B238)*1,0) -> 0 | D220: Includes SOW costs
A222: Onsite mains laying cost | B222: =IFERROR('PE Rates'!E175+'PE Rates'!E178+'PE Rates'!E181+E184+B229,0) -> 0 | C222: =IF(SUM('New PE EST'!$G$26:$I$29)<500,B222*1,IF(SUM('New PE EST'!$G$26:$I$29)>=500,B222*1)) -> 0
A223: Offsite mains laying cost - if above 2m | B223: =IFERROR(VLOOKUP('PE Rates'!A186,'PE Rates'!E8:F47,2,FALSE)*'New PE EST (2)'!C12,0) -> 0 | C223: =IF(SUM('New PE EST'!$G$26:$I$29)<500,B223*1,IF(SUM('New PE EST'!$G$26:$I$29)>=500,B223*1)) -> 0
A224: Offsite mains laying cost - if below 2m | B224: =(VLOOKUP('PE Rates'!A186,'PE Rates'!E8:F47,2,FALSE))*2 ->  | C224: =IF(SUM('New PE EST'!$G$26:$I$29)<500,B224*1,IF(SUM('New PE EST'!$G$26:$I$29)>=500,B224*1)) -> 
... 19 more rows

Sheet Rates (hidden)
A1: Full description of required works | B1: Code | C1: Unit of measure | E1: CONCATENATE | F1: ST charge (£) | G1: Diameter | H1: Excavation requirement
A2: Mains laying rates
A3: Blank dummy lines to enable formula for onsite mains cost to work | E3: =CONCATENATE(G3,H3) -> No excavation | F3: 0 | H3: No excavation
A4: Blank dummy lines to enable formula for onsite mains cost to work | E4: Unmade | F4: 0 | H4: Unmade
A5: Blank dummy lines to enable formula for onsite mains cost to work | E5: Footpath | F5: 0 | H5: Footpath
A6: Blank dummy lines to enable formula for onsite mains cost to work | E6: Type 3/4 CW | F6: 0 | H6: Type 3/4 CW
A7: Blank dummy lines to enable formula for onsite mains cost to work | E7: Type 1/2 CW | F7: 0 | H7: Type 1/2 CW
A8: Puriton main laying, n.e 2m depth, up to 125mm NB No excavation | B8: DR051 | C8: m | E8: up to 125No excavation | F8: 68.38 | G8: up to 125 | H8: No excavation
A9: Puriton main laying, n.e 2m depth, up to 125mm NB in Unmade | B9: DR052 | C9: m | E9: up to 125Unmade | F9: 88.78 | G9: up to 125 | H9: Unmade
A10: Puriton main laying, n.e 2m depth, up to 125mm NB in Footpath | B10: DR053 | C10: m | E10: up to 125Footpath | F10: 158.09 | G10: up to 125 | H10: Footpath
A11: Puriton main laying, n.e 2m depth, up to 125mm NB in Type 3/4 CW | B11: DR054 | C11: m | E11: up to 125Type 3/4 CW | F11: 189.85 | G11: up to 125 | H11: Type 3/4 CW
A12: Puriton main laying, n.e 2m depth, up to 125mm NB in Type 1/2 CW | B12: DR055 | C12: m | E12: up to 125Type 1/2 CW | F12: 220.88 | G12: up to 125 | H12: Type 1/2 CW
A13: Puriton main laying, n.e 2m depth, up to 180mm NB No excavation | B13: DR056 | C13: m | E13: 126 to 180No excavation | F13: 89.38 | G13: 126 to 180 | H13: No excavation
A14: Puriton main laying, n.e 2m depth, up to 180mm NB in Unmade | B14: DR057 | C14: m | E14: 126 to 180Unmade | F14: 115.39 | G14: 126 to 180 | H14: Unmade
A15: Puriton main laying, n.e 2m depth, up to 180mm NB in Footpath | B15: DR058 | C15: m | E15: 126 to 180Footpath | F15: 191.88 | G15: 126 to 180 | H15: Footpath
A16: Puriton main laying, n.e 2m depth, up to 180mm NB in Type 3/4 CW | B16: DR059 | C16: m | E16: 126 to 180Type 3/4 CW | F16: 229.54 | G16: 126 to 180 | H16: Type 3/4 CW
A17: Puriton main laying, n.e 2m depth, up to 180mm NB in Type 1/2 CW | B17: DR060 | C17: m | E17: 126 to 180Type 1/2 CW | F17: 287.69 | G17: 126 to 180 | H17: Type 1/2 CW
A18: Puriton main laying, n.e 2m depth, up to 200 mm NB No excavation | B18: DR061 | C18: m | E18: 181 to 200No excavation | F18: 154.18 | G18: 181 to 200 | H18: No excavation
A19: Puriton main laying, n.e 2m depth, up to 200 mm NB in Unmade | B19: DR062 | C19: m | E19: 181 to 200Unmade | F19: 190.94 | G19: 181 to 200 | H19: Unmade
A20: Puriton main laying, n.e 2m depth, up to 200mm NB in Footpath | B20: DR063 | C20: m | E20: 181 to 200Footpath | F20: 326.78 | G20: 181 to 200 | H20: Footpath
A21: Puriton main laying, n.e 2m depth, up to 200mm NB in Type 3/4 CW | B21: DR064 | C21: m | E21: 181 to 200Type 3/4 CW | F21: 375.26 | G21: 181 to 200 | H21: Type 3/4 CW
A22: Puriton main laying, n.e 2m depth, up to 200mm NB in Type 1/2 CW | B22: DR065 | C22: m | E22: 181 to 200Type 1/2 CW | F22: 481.24 | G22: 181 to 200 | H22: Type 1/2 CW
A23: Puriton main laying, n.e 2m depth, up to 250 mm NB No excavation | B23: DR066 | C23: m | E23: 201 to 250No excavation | F23: 199.57 | G23: 201 to 250 | H23: No excavation
A24: Puriton main laying, n.e 2m depth, up to 250 mm NB in Unmade | B24: DR067 | C24: m | E24: 201 to 250Unmade | F24: 244.56 | G24: 201 to 250 | H24: Unmade
A25: Puriton main laying, n.e 2m depth, up to 250mm NB in Footpath | B25: DR068 | C25: m | E25: 201 to 250Footpath | F25: 384.51 | G25: 201 to 250 | H25: Footpath
A26: Puriton main laying, n.e 2m depth, up to 250mm NB in Type 3/4 CW | B26: DR069 | C26: m | E26: 201 to 250Type 3/4 CW | F26: 439.02 | G26: 201 to 250 | H26: Type 3/4 CW
A27: Puriton main laying, n.e 2m depth, up to 250mm NB in Type 1/2 CW | B27: DR070 | C27: m | E27: 201 to 250Type 1/2 CW | F27: 526.07 | G27: 201 to 250 | H27: Type 1/2 CW
A28: Puriton main laying, n.e 2m depth, up to 355mm NB No excavation | B28: DR071 | C28: m | E28: 251 to 355No excavation | F28: 269.64 | G28: 251 to 355 | H28: No excavation
A29: Puriton main laying, n.e 2m depth, up to 355mm NB in Unmade | B29: DR072 | C29: m | E29: 251 to 355Unmade | F29: 325.37 | G29: 251 to 355 | H29: Unmade
A30: Puriton main laying, n.e 2m depth, up to 355mm NB in Footpath | B30: DR073 | C30: m | E30: 251 to 355Footpath | F30: 520.41 | G30: 251 to 355 | H30: Footpath
A31: Puriton main laying, n.e 2m depth, up to 355mm NB in Type 3/4 CW | B31: DR074 | C31: m | E31: 251 to 355Type 3/4 CW | F31: 393.78 | G31: 251 to 355 | H31: Type 3/4 CW
A32: Puriton main laying, n.e 2m depth, up to 355mm NB in Type 1/2 CW | B32: DR075 | C32: m | E32: 251 to 355Type 1/2 CW | F32: 611.79 | G32: 251 to 355 | H32: Type 1/2 CW
A33: Puriton main laying, n.e 2m depth, up to 450mm NB No excavation | B33: DR076 | C33: m | E33: 356 to 450No excavation | F33: 394.15 | G33: 356 to 450 | H33: No excavation
A34: Puriton main laying, n.e 2m depth, up to 450mm NB in Unmade | B34: DR077 | C34: m | E34: 356 to 450Unmade | F34: 463.3 | G34: 356 to 450 | H34: Unmade
A35: Puriton main laying, n.e 2m depth, up to 450mm NB in Footpath | B35: DR078 | C35: m | E35: 356 to 450Footpath | F35: 661.46 | G35: 356 to 450 | H35: Footpath
A36: Puriton main laying, n.e 2m depth, up to 450mm NB in Type 3/4 CW | B36: DR079 | C36: m | E36: 356 to 450Type 3/4 CW | F36: 521.85 | G36: 356 to 450 | H36: Type 3/4 CW
A37: Puriton main laying, n.e 2m depth, up to 450mm NB in Type 1/2 CW | B37: DR080 | C37: m | E37: 356 to 450Type 1/2 CW | F37: 781.25 | G37: 356 to 450 | H37: Type 1/2 CW
A38: Under pressure connections
A39: Under pressure connection. Body not exceeding 100mm NB. No Excavation | B39: DR086 | C39: nr | E39: =CONCATENATE(G39,H39) -> up to 100No excavation | F39: 1586.69 | G39: up to 100 | H39: No excavation
A40: Under pressure connection body not exceeding 100mm NB. Unmade | B40: DR087 | C40: nr | E40: up to 100Unmade | F40: 2121.96 | G40: up to 100 | H40: Unmade
A41: Under pressure connection. Body not exceeding 100mm NB. Footpath | B41: DR088 | C41: nr | E41: up to 100Footpath | F41: 2706.26 | G41: up to 100 | H41: Footpath
A42: Under pressure connection Body not exceeding 100mm NB. Type 3/4 carriageway | B42: DR089 | C42: nr | E42: up to 100Type 3/4 CW | F42: 3423.42 | G42: up to 100 | H42: Type 3/4 CW
A43: Under pressure connection Body not exceeding 100mm NB. Type 1/2 carriageway | B43: DR090 | C43: nr | E43: up to 100Type 1/2 CW | F43: 3569.28 | G43: up to 100 | H43: Type 1/2 CW
A44: Under pressure connection Body 150-200mm NB. No Excavation | B44: DR092 | C44: nr | E44: 150-200No excavation | F44: 2314.02 | G44: 150-200 | H44: No excavation
A45: Under pressure connection Body 150-200mm NB. Unmade | B45: DR093 | C45: nr | E45: 150-200Unmade | F45: 3009.93 | G45: 150-200 | H45: Unmade
A46: Under pressure connection Body 150-200mm NB. Footpath | B46: DR094 | C46: nr | E46: 150-200Footpath | F46: 3873.58 | G46: 150-200 | H46: Footpath
A47: Under pressure connection Body 150-200mm NB. Type 3/4 carriageway | B47: DR095 | C47: nr | E47: 150-200Type 3/4 CW | F47: 4518.11 | G47: 150-200 | H47: Type 3/4 CW
A48: Under pressure connection Body 150-200mm NB. Type 1/2 carriageway | B48: DR096 | C48: nr | E48: 150-200Type 1/2 CW | F48: 4693.13 | G48: 150-200 | H48: Type 1/2 CW
A49: Under pressure connection Body 225-300 NB. No Excavation | B49: DR098 | C49: nr | E49: 225-300No excavation | F49: 3964.72 | G49: 225-300 | H49: No excavation
A50: Under pressure connection Body 225-300 NB. Unmade | B50: DR099 | C50: nr | E50: 225-300Unmade | F50: 4963.97 | G50: 225-300 | H50: Unmade
A51: Under pressure connection Body 225-300 NB. Footpath | B51: DR100 | C51: nr | E51: 225-300Footpath | F51: 5882.6 | G51: 225-300 | H51: Footpath
A52: Under pressure connection Body 225-300 NB. Type 3/4 carriageway | B52: DR101 | C52: nr | E52: 225-300Type 3/4 CW | F52: 6867.23 | G52: 225-300 | H52: Type 3/4 CW
A53: Under pressure connection Body 225-300 NB. Type 1/2 carriageway | B53: DR102 | C53: nr | E53: 225-300Type 1/2 CW | F53: 7124.65 | G53: 225-300 | H53: Type 1/2 CW
A54: Under pressure connection Body 375-450 NB. No Excavation | B54: DR104 | C54: nr | E54: 375-450No excavation | F54: 10106.03 | G54: 375-450 | H54: No excavation
A55: Under pressure connection Body 375-450 NB. Unmade | B55: DR105 | C55: nr | E55: 375-450Unmade | F55: 12007.75 | G55: 375-450 | H55: Unmade
A56: Under pressure connection Body 375-450 NB. Footpath | B56: DR106 | C56: nr | E56: 375-450Footpath | F56: 14159.52 | G56: 375-450 | H56: Footpath
A57: Under pressure connection Body 375-450 NB. Type 3/4 carriageway | B57: DR107 | C57: nr | E57: 375-450Type 3/4 CW | F57: 17637.45 | G57: 375-450 | H57: Type 3/4 CW
A58: Under pressure connection Body 375-450 NB. Type 1/2 carriageway | B58: DR108 | C58: nr | E58: 375-450Type 1/2 CW | F58: 18098.16 | G58: 375-450 | H58: Type 1/2 CW
A59: Valves, hydrants, wash outs
A60: Install SV/FH/WO/Tee up to 4" No Excavation | B60: DR110 | C60: nr | E60: up to 125No excavation | F60: 441.25 | G60: up to 125 | H60: No excavation
A61: Install SV/FH/WO/Tee up to 4" in Unmade | B61: DR111 | C61: nr | E61: up to 125Unmade | F61: 616.16 | G61: up to 125 | H61: Unmade
A62: Install SV/FH/WO/Tee up to 4" in Footpath | B62: DR112 | C62: nr | E62: up to 125Footpath | F62: 754.27 | G62: up to 125 | H62: Footpath
A63: Install SV/FH/WO/Tee up to 4" in Type 3/4 carriageway | B63: DR113 | C63: nr | E63: up to 125Type 3/4 CW | F63: 798.18 | G63: up to 125 | H63: Type 3/4 CW
A64: Install SV/FH/WO/Tee up to 4" in Type 1/2 carriageway | B64: DR114 | C64: nr | E64: up to 125Type 1/2 CW | F64: 839.09 | G64: up to 125 | H64: Type 1/2 CW
A65: Install SV/FH/WO/Tee up to 6" No Excavation | B65: DR115 | C65: nr | E65: 126 to 180No excavation | F65: 680.02 | G65: 126 to 180 | H65: No excavation
A66: Install SV/FH/WO/Tee up to 6" in Unmade | B66: DR116 | C66: nr | E66: 126 to 180Unmade | F66: 681.6 | G66: 126 to 180 | H66: Unmade
A67: Install SV/FH/WO/Tee up to 6" in Footpath | B67: DR117 | C67: nr | E67: 126 to 180Footpath | F67: 821.94 | G67: 126 to 180 | H67: Footpath
A68: Install SV/FH/WO/Tee up to 6" in Type 3/4 carriageway | B68: DR118 | C68: nr | E68: 126 to 180Type 3/4 CW | F68: 871.73 | G68: 126 to 180 | H68: Type 3/4 CW
A69: Install SV/FH/WO/Tee up to 6" in Type 1/2 carriageway | B69: DR119 | C69: nr | E69: 126 to 180Type 1/2 CW | F69: 914.68 | G69: 126 to 180 | H69: Type 1/2 CW
A70: Install SV/FH/WO/Tee up to 9" No Excavation | B70: DR120 | C70: nr | E70: 181 to 200No excavation | F70: 1043.91 | G70: 181 to 200 | H70: No excavation
A71: Install SV/FH/WO/Tee up to 9" in Unmade | B71: DR121 | C71: nr | E71: 181 to 200Unmade | F71: 1044.97 | G71: 181 to 200 | H71: Unmade
A72: Install SV/FH/WO/Tee up to 9" in Footpath | B72: DR122 | C72: nr | E72: 181 to 200Footpath | F72: 1197.39 | G72: 181 to 200 | H72: Footpath
A73: Install SV/FH/WO/Tee up to 9" in Type 3/4 carriageway | B73: DR123 | C73: nr | E73: 181 to 200Type 3/4 CW | F73: 1255.81 | G73: 181 to 200 | H73: Type 3/4 CW
A74: Install SV/FH/WO/Tee up to 9" in Type 1/2 carriageway | B74: DR124 | C74: nr | E74: 181 to 200Type 1/2 CW | F74: 1301.19 | G74: 181 to 200 | H74: Type 1/2 CW
A75: Install SV/FH/WO/Tee up to 9" No Excavation | B75: DR120 | C75: nr | E75: 201 to 250No excavation | F75: 1043.91 | G75: 201 to 250 | H75: No excavation
A76: Install SV/FH/WO/Tee up to 9" in Unmade | B76: DR121 | C76: nr | E76: 201 to 250Unmade | F76: 1044.97 | G76: 201 to 250 | H76: Unmade
A77: Install SV/FH/WO/Tee up to 9" in Footpath | B77: DR122 | C77: nr | E77: 201 to 250Footpath | F77: 1197.39 | G77: 201 to 250 | H77: Footpath
A78: Install SV/FH/WO/Tee up to 9" in Type 3/4 carriageway | B78: DR123 | C78: nr | E78: 201 to 250Type 3/4 CW | F78: 1255.81 | G78: 201 to 250 | H78: Type 3/4 CW
A79: Install SV/FH/WO/Tee up to 9" in Type 1/2 carriageway | B79: DR124 | C79: nr | E79: 201 to 250Type 1/2 CW | F79: 1301.19 | G79: 201 to 250 | H79: Type 1/2 CW
A80: Install SV/FH/WO/Tee up to 12" No Excavation | B80: DR125 | C80: nr | E80: 251 to 355No excavation | F80: 2156.1 | G80: 251 to 355 | H80: No excavation
A81: Install SV/FH/WO/Tee up to 12" in Unmade | B81: DR126 | C81: nr | E81: 251 to 355Unmade | F81: 2371.79 | G81: 251 to 355 | H81: Unmade
A82: Install SV/FH/WO/Tee up to 12" in Footpath | B82: DR127 | C82: nr | E82: 251 to 355Footpath | F82: 2554.67 | G82: 251 to 355 | H82: Footpath
A83: Install SV/FH/WO/Tee up to 12" in Type 3/4 carriageway | B83: DR128 | C83: nr | E83: 251 to 355Type 3/4 CW | F83: 2638.34 | G83: 251 to 355 | H83: Type 3/4 CW
A84: Install SV/FH/WO/Tee up to 12" in Type 1/2 carriageway | B84: DR129 | C84: nr | E84: 251 to 355Type 1/2 CW | F84: 2688.38 | G84: 251 to 355 | H84: Type 1/2 CW
A85: Install SV/FH/WO/Tee up to 18" No Excavation | B85: DR130 | C85: nr | E85: 356 to 450No excavation | F85: 7673.99 | G85: 356 to 450 | H85: No excavation
A86: Install SV/FH/WO/Tee up to 18" in Unmade | B86: DR131 | C86: nr | E86: 356 to 450Unmade | F86: 8262.53 | G86: 356 to 450 | H86: Unmade
A87: Install SV/FH/WO/Tee up to 18" in Footpath | B87: DR132 | C87: nr | E87: 356 to 450Footpath | F87: 8714.08 | G87: 356 to 450 | H87: Footpath
A88: Install SV/FH/WO/Tee up to 18" in Type 3/4 carriageway | B88: DR133 | C88: nr | E88: 356 to 450Type 3/4 CW | F88: 8815.06 | G88: 356 to 450 | H88: Type 3/4 CW
A89: Install SV/FH/WO/Tee up to 18" in Type 1/2 carriageway | B89: DR134 | C89: nr | E89: 356 to 450Type 1/2 CW | F89: 11274.92 | G89: 356 to 450 | H89: Type 1/2 CW
A90: Cap offs
A91: Cap off Abandoned main up to 4" in Tarmac/Footway | B91: DR135 | C91: nr | F91: 755.08 | G91: 4" | H91: Tarmac/footway
A92: Cap off Abandoned main 4-6" in Unmade | B92: DR140 | C92: nr | F92: 580.59 | G92: 4 - 6" | H92: Unmade
A93: Cap off Abandoned main up to 4-6" in Tarmac/Footway | B93: DR136 | C93: nr | F93: 859.18 | G93: 4 - 6" | H93: Tarmac/footway
A94: Cap off Abandoned main up to 6-9" in Tarmac/Footway | B94: DR137 | C94: nr | F94: 1126.9 | G94: 6 - 9" | H94: Tarmac/footway
A95: Cap off Abandoned main 6-9" in Verge/Footway | B95: DR138 | C95: nr | F95: 1029.55 | G95: 6 - 9" | H95: Verge/footway
A96: Cap off Abandoned main 9-12" in Tarmac/Footway | B96: DR139 | C96: nr | F96: 1456.13 | G96: 9 - 12" | H96: Tarmac/footway
A97: Pressure Test & Chlorination
A98: Pressure Test & Chlorination | B98: DR141 | C98: nr | F98: 874.53
A99: Trial hole | F99: 0
A100: Trial hole in unmade | B100: DR142 | C100: m3 | E100: Unmade | F100: 149.38 | H100: Unmade
A101: Trial hole in Footpath | B101: DR143 | C101: m3 | E101: Footpath | F101: 278.29 | H101: Footpath
A102: Trial hole in type 3/4 | B102: DR144 | C102: m3 | E102: Type 3/4 CW | F102: 405.99 | H102: Type 3/4 CW
A103: Trial hole in type 2/1 | B103: DR145 | C103: m3 | E103: Type 1/2 CW | F103: 594.06 | H103: Type 1/2 CW
A104: Shut off
A105: Shut off (Turnkey attendance) | B105: DR146 | C105: day | F105: 638.73
A106: B2B
A107: Back to back connection; includes removal of end hydrants, maximum connection distance 2m; not exceeding 125mm diameter | B107: DR149 | C107: sum | F107: 945.68
A108: Back to back connection; includes removal of end hydrants, maximum connection distance 2m; not exceeding 180mm diameter | B108: DR150 | C108: sum | F108: 986.6
A109: Back to back connection; includes removal of end hydrants, maximum connection distance 2m; not exceeding 250mm diameter | B109: dr150.5 | C109: sum | F109: 1726.53
A110: Sampling | F110: 0
A111: Sampling; where not included within a turnkey operation - applies to separate site visit solely for the purpose of sampling, as instructed | B111: DR151 | C111: sum | F111: 252.92
A112: Traffic lights
A113: 2 way temporary traffic lights | B113: TL2 | C113: sum | F113: 883.48 | G113: confirmed with ZH
A114: 3 way temporary traffic lights | B114: TL3 | C114: sum | F114: 1008.75 | G114: confirmed with ZH
A115: 4 way temporary traffic lights | B115: TL4 | C115: sum | F115: 1118.77 | G115: confirmed with ZH
A118: Pipe diameter drop down options
A120: up to 125 | B120: up to 63
A121: 126 to 180 | B121: 64 to 90
A122: 181 to 200 | B122: 91 to 125
A123: 201 to 250 | B123: 126 to 180
A124: 251 to 355 | B124: 181 to 200
A125: 356 to 450 | B125: 201 to 250
B126: 251 to 355
B127: 356 to 450
A129: Excavation drop down options
A130: No excavation
A131: Unmade
A132: Footpath
A133: Type 3/4 CW
A134: Type 1/2 CW
A136: Traffic management drop down options
A137: 2 way temporary traffic lights
A138: 3 way temporary traffic lights
A139: 4 way temporary traffic lights
A141: PE lay type drop down options
A142: Lay only
A143: Open cut
A145: PE offsite excavation drop down options
A146: No excavation
A147: Excavation in unmade ground
A148: Excavation in the highway
A150: Pop up for PE <5 or >250 plots
A151: You have selected a number of plots which is less than 5 or over 250, this estimator tool is not applicable for this number of plots so you will require a bespoke quote for your site.
A153: Concatenate for Barrier onsite mains laying rate 1
A154: =CONCATENATE('BARR EST'!C27,'BARR EST'!C33) ->  | C154: Cost of onsite barrier length 1 | E154: =(VLOOKUP(A154,E3:F37,2,FALSE))*'BARR EST'!G27 -> 
A156: Concatenate for Barrier onsite mains laying rate 2
A157: =CONCATENATE('BARR EST'!C28,'BARR EST'!C33) ->  | C157: Cost of onsite barrier length 2 | E157: =(VLOOKUP(A157,E3:F37,2,FALSE))*'BARR EST'!G28 -> 
A159: Concatenate for Barrier onsite mains laying rate 1
A160: =CONCATENATE('BARR EST'!C29,'BARR EST'!C33) ->  | C160: Cost of onsite barrier length 3 | E160: =(VLOOKUP(A160,E3:F37,2,FALSE))*'BARR EST'!G29 -> 
A162: Concatenate for Barrier offsite mains laying rate
A163: =CONCATENATE('BARR EST (2)'!C17,'BARR EST (2)'!C24) ->  | B163: question 4 and 5
A165: Concatenate for Barrier under pressure connections
A166: =CONCATENATE('BARR EST (3)'!C12,'BARR EST (2)'!C24) -> 
A168: Valves and uplift at SOW barrier (adjustment post audit and testing)
A169: Concatenate for offsite valve
A170: =CONCATENATE('BARR EST (2)'!C17,'BARR EST (2)'!C24) -> 
A171: SOW valve charge (per unit) | B171: =VLOOKUP(A170,E60:F89,2,FALSE) -> 
A172: SOW valve charge for 3 (assume 3 at SOW) | B172: =B171*3 ->  | C172: ok
A174: Flat uplift as per audit/sample averages (16.77% increase) | B174: 1.1677
A176: SOW cost for simply UPT | B176: =VLOOKUP(A166,E39:F58,2,FALSE) ->  | C176: question 6, question 5
A177: Traffic mgt | B177: =F113 -> 883.48
A178: Adding valves | B178: =B176+B177+B172 -> 
A180: Concatenate for Barrier under pressure connections
A181: up to 100
A182: 150-200 | C182: Number of pressure tests - ensuring no less than 0 | F182: =MAX(1,('BARR EST'!G27+'BARR EST'!G28+'BARR EST'!G29)/100) -> 1
A183: 225-300 | C183: Ensure rounding to a single figure | F183: =ROUND(F182,0) -> 1
A184: 375-450
A186: Concatenate for valves, hydrants and wash outs
A187: =CONCATENATE('BARR EST'!C27,'BARR EST'!C33) -> 
C188: Length | E188: Divided by 100m | G188: Rounding to a single figure
A189: How many required (1 per 100m + 2) | C189: ='BARR EST'!G27+'BARR EST'!G28+'BARR EST'!G29 -> 0 | D189: m | E189: =(C189/100)*1.5 -> 0 | G189: =ROUND(E189,0) -> 0
G191: Add two
G192: =G189+2 -> 2
A195: Onsite mains laying cost | B195: =E154+E157+E160 ->  | C195: =IF(SUM('BARR EST'!$G$27:$I$29)<500,B195*1,IF(SUM('BARR EST'!$G$27:$I$29)>=500,B195*1)) ->  | E195: barriers
A196: Offsite mains laying cost - if above 2m | B196: =VLOOKUP(A163,E8:F37,2,FALSE)*'BARR EST (2)'!C12 ->  | C196: =IF(SUM('BARR EST'!$G$27:$I$29)<500,B196*1,IF(SUM('BARR EST'!$G$27:$I$29)>=500,B196*1)) ->  | E196: puritan oioe
A197: Offsite mains laying cost - if below 2m | B197: =VLOOKUP(A163,E8:F37,2,FALSE)*2 ->  | C197: =IF(SUM('BARR EST'!$G$27:$I$29)<500,B197*1,IF(SUM('BARR EST'!$G$27:$I$29)>=500,B197*1)) ->  | E197: same
A198: Offsite mains laying cost - pull through cell | B198: =IF('BARR EST (2)'!C12<2,B197,B196) ->  | C198: =IF(SUM('BARR EST'!$G$27:$I$29)<500,B198*1,IF(SUM('BARR EST'!$G$27:$I$29)>=500,B198*1)) ->  | E198: minimum 2m charge offsite
A199: SOW connection cost + TM + valves | B199: =B178 ->  | C199: =IF(SUM('BARR EST'!$G$27:$I$29)<500,B199*1,IF(SUM('BARR EST'!$G$27:$I$29)>=500,B199*1)) ->  | E199: This does not include any length of main connecting into the connection itself (this would shown within the total 'offsite mains laying cost'). This does include the physical connection, traffic mgt and valves at the SOW connection. This estimator assumes a SOW cost in each estimate rather than a 'back-to-back'.
A200: Valves, hydrants, wash outs along the length of the mains | B200: =_xlfn.IFNA((VLOOKUP(A187,E60:F89,2,FALSE)*G192),"Please select a diameter")*1.5 ->  | C200: =IFERROR(B200*1,0) -> 0 | E200: This estimator assumes 1.5 valve for every 100m of onsite mains plus one extra at each end of the total mains length
A201: Cap offs | B201: =('BARR EST (3)'!J22*F91)+('BARR EST (3)'!J23*F92)+('BARR EST (3)'!J24*F93)+('BARR EST (3)'!J25*F94)+('BARR EST (3)'!J26*F95)+('BARR EST (3)'!J27*F96) -> 0 | C201: =IF(SUM('BARR EST'!$G$27:$I$29)<500,B201*1,IF(SUM('BARR EST'!$G$27:$I$29)>=500,B201*1)) -> 0
A202: Pressure test | B202: =F98*F183 -> 874.53 | C202: =IF(SUM('BARR EST'!$G$27:$I$29)<500,B202*1,IF(SUM('BARR EST'!$G$27:$I$29)>=500,B202*1)) -> 874.53 | E202: This estimator assumes 1 pressure test per 100m of onsite mains
A203: Trial holes | B203: =VLOOKUP('BARR EST (2)'!C24,E100:F103,2,FALSE) ->  | C203: =IF(SUM('BARR EST'!$G$27:$I$29)<500,B203*1,IF(SUM('BARR EST'!$G$27:$I$29)>=500,B203*1)) ->  | E203: This estimator assumes 1 trial hole within each estimate
A204: B2B max price | B204: 727.34 | C204: =IF(SUM('BARR EST'!$G$27:$I$29)<500,B204*1,IF(SUM('BARR EST'!$G$27:$I$29)>=500,B204*1)) -> 727.34
A205: Sampling | B205: 187.47 | C205: =IF(SUM('BARR EST'!$G$27:$I$29)<500,B205*1,IF(SUM('BARR EST'!$G$27:$I$29)>=500,B205*1)) -> 187.47
A206: UPT Average | B206: 3995.33 | C206: =IF(SUM('BARR EST'!$G$27:$I$29)<500,B206*1,IF(SUM('BARR EST'!$G$27:$I$29)>=500,B206*1)) -> 3995.33
A207: Connection valves Average | B207: =1297.02*3+1451.24 -> 5342.3 | C207: =IF(SUM('BARR EST'!$G$27:$I$29)<500,B207*1,IF(SUM('BARR EST'!$G$27:$I$29)>=500,B207*1)) -> 5342.3 | E207: =CONCATENATE('BARR EST (3)'!C12:E12,'BARR EST (2)'!C24:E24) ->  | H207: added thrust block to SOW connection
C208: =IF(SUM('BARR EST'!$G$27:$I$29)<500,B208*1,IF(SUM('BARR EST'!$G$27:$I$29)>=500,B208*1)) -> 0 | H208: [4/20 9:59 AM] Fathimath, Nishana
A209: SOW totals | C209: =IF(SUM('BARR EST'!$G$27:$I$29)<500,B209*1,IF(SUM('BARR EST'!$G$27:$I$29)>=500,B209*1)) -> 0 | H209: hi Chris
A210: Physical connection total | B210: =B199+B203+B204 ->  | C210: =IF(SUM('BARR EST'!$G$27:$I$29)<500,B210*1,IF(SUM('BARR EST'!$G$27:$I$29)>=500,B210*1)) ->  | H210: yes all's good here. hope the same with u. yes the price of a thrust block for AMP 7 is a fixed rate of £1,143.52 (this is only the basic rate. there are 2 sets of uplifts amey add to this where the % depends on type of scheme. and on top of that, there are 2 sets of uplifts from STW too) hope this helps
A211: Offsite mains total | B211: =B198+B202+B205+B206+B207 ->  | C211: =IF(SUM('BARR EST'!$G$27:$I$29)<500,B211*1,IF(SUM('BARR EST'!$G$27:$I$29)>=500,B211*1)) -> 
H212: kept thrustblock at last years price - but it now varies
A213: Physical connection total V1 | B213: =IF(SUM('BARR EST'!G27:I29)<200,B210*1,IF(SUM('BARR EST'!G27:I29)>200,B210*1)) ->  | E213: 10% reduction made for schemes <500 no longer applies
A214: Offsite mains total V1 | B214: =IF(SUM('BARR EST'!G27:I29)<200,B211*1,IF(SUM('BARR EST'!G27:I29)>200,B211*1)) ->  | E214: 10% reduction made for schemes <500 no longer applies
A215: total offsite connection metres (-2m) - question 3 (contestable) | B215: =IF('BARR EST (2)'!C12>2,'BARR EST (2)'!C12-2,2) -> 2
A216: offsite pipework cost (contestable) | B216: =IFERROR(VLOOKUP(A163,E8:F37,2,FALSE)*'BARR EST (2)'!C12,0) -> 0 | D216: =A163 ->  | E216: ='BARR EST (2)'!C12 -> 0 | F216: metres
A217: =A113 -> 2 way temporary traffic lights | B217: =F113 -> 883.48
A218: SOW connection + thrustblock (1451.24) and lights + Trial hole + b2b + UPT ave + valves | B218: =IFERROR(B210+1451.24,0) -> 0
A219: PE rates for PE SOW calculation
A220: Full description of required works | B220: Code | C220: Unit of measure | D220: Amey rate (£) | E220: CONCATENATE | F220: ST charge (£) | G220: Diameter | H220: Excavation requirement
A221: Mains laying rates
... 137 more rows
